[Event "Late-Titled-Tuesday-Blitz-October-10-2023"]
[Site "Chess.com"]
[Date "2023.10.10"]
[Round "4"]
[White "Noki102"]
[Black "ameetghasi100"]
[Result "0-1"]
[WhiteElo "2469"]
[BlackElo "2729"]
[TimeControl "180+1"]
[EndTime "14:37:04 PDT"]
[Termination "ameetghasi100 won by resignation"]

1. d4 {[%clk 0:02:59.6]} 1... g6 {[%clk 0:03:00.9]} 2. Nc3 {[%clk 0:02:58.4]}
2... d6 {[%clk 0:03:01.8]} 3. h4 {[%clk 0:02:58.4]} 3... h6 {[%clk 0:03:01.6]}
4. e4 {[%clk 0:02:54.8]} 4... Bg7 {[%clk 0:03:01.4]} 5. Bc4 {[%clk 0:02:53.4]}
5... Nc6 {[%clk 0:02:57.2]} 6. Nf3 {[%clk 0:02:52.9]} 6... Bg4 {[%clk
0:02:51.5]} 7. Be3 {[%clk 0:02:52.6]} 7... Nf6 {[%clk 0:02:41.9]} 8. Qd2 {[%clk
0:02:41.3]} 8... a6 {[%clk 0:02:34]} 9. a3 {[%clk 0:02:39.2]} 9... b5 {[%clk
0:02:22.3]} 10. Ba2 {[%clk 0:02:33.3]} 10... Bxf3 {[%clk 0:02:17.4]} 11. gxf3
{[%clk 0:02:32.5]} 11... e5 {[%clk 0:02:17.9]} 12. Ne2 {[%clk 0:02:26.8]} 12...
Rb8 {[%clk 0:02:06.5]} 13. c3 {[%clk 0:02:24]} 13... Nh5 {[%clk 0:02:04.1]} 14.
f4 {[%clk 0:02:17]} 14... Qe7 {[%clk 0:01:49]} 15. Bd5 {[%clk 0:02:12.1]} 15...
Na5 {[%clk 0:01:48.4]} 16. dxe5 {[%clk 0:01:30]} 16... dxe5 {[%clk 0:01:47.6]}
17. b4 {[%clk 0:01:27.6]} 17... Nc4 {[%clk 0:01:47.1]} 18. Bxc4 {[%clk
0:01:27.8]} 18... bxc4 {[%clk 0:01:48]} 19. Bc5 {[%clk 0:01:27.9]} 19... Qd8
{[%clk 0:01:33.5]} 20. Qe3 {[%clk 0:01:20.7]} 20... exf4 {[%clk 0:01:29.8]} 21.
Qf3 {[%clk 0:01:04.1]} 21... Qd3 {[%clk 0:01:26.8]} 22. Qxd3 {[%clk 0:00:59.1]}
22... cxd3 {[%clk 0:01:26.6]} 23. Nd4 {[%clk 0:00:59.7]} 23... Nf6 {[%clk
0:01:24.5]} 24. f3 {[%clk 0:00:58.3]} 24... Nd7 {[%clk 0:01:24.4]} 25. Nb3
{[%clk 0:00:52.5]} 25... Bxc3+ {[%clk 0:01:23.8]} 26. Kf2 {[%clk 0:00:52.6]}
26... Bxa1 {[%clk 0:01:24.1]} 27. Rxa1 {[%clk 0:00:53.5]} 27... Nxc5 {[%clk
0:01:24.6]} 28. Nxc5 {[%clk 0:00:53.9]} 28... g5 {[%clk 0:01:09.4]} 29. Nxd3
{[%clk 0:00:53]} 29... Ke7 {[%clk 0:01:07.3]} 30. Rc1 {[%clk 0:00:51.3]} 30...
Rhd8 {[%clk 0:00:51.6]} 31. Ke2 {[%clk 0:00:50.5]} 31... Rb7 {[%clk 0:00:37.3]}
32. h5 {[%clk 0:00:41.7]} 32... Rd6 {[%clk 0:00:34.9]} 33. Ne5 {[%clk
0:00:37.4]} 33... Ke6 {[%clk 0:00:26.9]} 34. Ng4 {[%clk 0:00:36.6]} 34... Kd7
{[%clk 0:00:24.9]} 35. e5 {[%clk 0:00:34.9]} 35... Re6 {[%clk 0:00:24.8]} 36.
Kd3 {[%clk 0:00:34.8]} 36... Rb5 {[%clk 0:00:18.7]} 37. Rc4 {[%clk 0:00:20.5]}
37... Rbxe5 {[%clk 0:00:18.4]} 38. Nxe5+ {[%clk 0:00:20.1]} 38... Rxe5 {[%clk
0:00:19.3]} 39. Rd4+ {[%clk 0:00:16.2]} 39... Ke6 {[%clk 0:00:19.2]} 40. Rc4
{[%clk 0:00:12.5]} 40... Re3+ {[%clk 0:00:19.4]} 41. Kd2 {[%clk 0:00:12.9]}
41... Kd7 {[%clk 0:00:18.6]} 42. Rc3 {[%clk 0:00:12.3]} 42... Rxc3 {[%clk
0:00:17.8]} 43. Kxc3 {[%clk 0:00:13.2]} 43... f5 {[%clk 0:00:17.5]} 44. Kd4
{[%clk 0:00:13.1]} 44... Kd6 {[%clk 0:00:18]} 45. a4 {[%clk 0:00:11.8]} 45... c6
{[%clk 0:00:18.5]} 0-1

[Event "Late-Titled-Tuesday-Blitz-October-10-2023"]
[Site "Chess.com"]
[Date "2023.10.10"]
[Round "4"]
[White "Byniolus"]
[Black "Cheer_Down"]
[Result "1-0"]
[WhiteElo "2708"]
[BlackElo "2462"]
[TimeControl "180+1"]
[EndTime "14:37:09 PDT"]
[Termination "Byniolus won by checkmate"]

1. d4 {[%clk 0:03:00.9]} 1... Nf6 {[%clk 0:02:59.3]} 2. Nf3 {[%clk 0:03:01.2]}
2... d5 {[%clk 0:02:57.3]} 3. Bf4 {[%clk 0:03:01.4]} 3... e6 {[%clk 0:02:57]} 4.
e3 {[%clk 0:03:01.5]} 4... c5 {[%clk 0:02:57.5]} 5. c3 {[%clk 0:03:01.5]} 5...
Nc6 {[%clk 0:02:58.1]} 6. Nbd2 {[%clk 0:03:02]} 6... cxd4 {[%clk 0:02:58.3]} 7.
cxd4 {[%clk 0:03:02.1]} 7... Bd6 {[%clk 0:02:54.4]} 8. Bg3 {[%clk 0:03:01.9]}
8... O-O {[%clk 0:02:52.8]} 9. Bd3 {[%clk 0:03:01.7]} 9... b6 {[%clk 0:02:51.4]}
10. O-O {[%clk 0:02:58.9]} 10... Bxg3 {[%clk 0:02:51.2]} 11. hxg3 {[%clk
0:02:59]} 11... Bb7 {[%clk 0:02:48.7]} 12. Qa4 {[%clk 0:02:56.3]} 12... Qd6
{[%clk 0:02:34]} 13. Rfc1 {[%clk 0:02:49.8]} 13... Rfc8 {[%clk 0:02:33.5]} 14.
a3 {[%clk 0:02:47.6]} 14... h6 {[%clk 0:02:23]} 15. Rc3 {[%clk 0:02:43.1]} 15...
Rc7 {[%clk 0:01:59.9]} 16. Rac1 {[%clk 0:02:41.1]} 16... Rac8 {[%clk 0:01:59.9]}
17. Ne5 {[%clk 0:01:29.1]} 17... Nxe5 {[%clk 0:01:56.6]} 18. Rxc7 {[%clk
0:01:24.2]} 18... Rxc7 {[%clk 0:01:53.3]} 19. Rxc7 {[%clk 0:01:23.2]} 19... Qxc7
{[%clk 0:01:39.7]} 20. dxe5 {[%clk 0:01:23.2]} 20... Bc6 {[%clk 0:01:22.3]} 21.
Qc2 {[%clk 0:01:09.6]} 21... Nd7 {[%clk 0:01:22.5]} 22. f4 {[%clk 0:01:04.9]}
22... Nc5 {[%clk 0:01:19.1]} 23. Nf3 {[%clk 0:00:59.1]} 23... Ba4 {[%clk
0:01:13.3]} 24. Qc3 {[%clk 0:00:56.9]} 24... Qd7 {[%clk 0:00:41]} 25. Nd4 {[%clk
0:00:52.9]} 25... g6 {[%clk 0:00:38.6]} 26. Bb1 {[%clk 0:00:34.4]} 26... h5
{[%clk 0:00:38.5]} 27. b4 {[%clk 0:00:28.1]} 27... Ne4 {[%clk 0:00:35.7]} 28.
Bxe4 {[%clk 0:00:26.9]} 28... dxe4 {[%clk 0:00:36.1]} 29. Kf2 {[%clk 0:00:21]}
29... Kg7 {[%clk 0:00:33.2]} 30. Qc4 {[%clk 0:00:17.4]} 30... Bd1 {[%clk
0:00:20.7]} 31. Qc6 {[%clk 0:00:14.5]} 31... Qd8 {[%clk 0:00:19.2]} 32. Qd6
{[%clk 0:00:11.1]} 32... Qc8 {[%clk 0:00:18.4]} 33. Qe7 {[%clk 0:00:06.9]} 33...
Kg8 {[%clk 0:00:16.3]} 34. Qd6 {[%clk 0:00:03]} 34... Qc3 {[%clk 0:00:13.5]} 35.
Nc6 {[%clk 0:00:02.2]} 35... Qb2+ {[%clk 0:00:08.6]} 36. Kg1 {[%clk 0:00:02]}
36... Qe2 {[%clk 0:00:07.9]} 37. Ne7+ {[%clk 0:00:01.9]} 37... Kg7 {[%clk
0:00:07.9]} 38. Qd8 {[%clk 0:00:02.6]} 38... Qxe3+ {[%clk 0:00:04.9]} 39. Kh2
{[%clk 0:00:02.4]} 39... h4 {[%clk 0:00:03.3]} 40. Qg8+ {[%clk 0:00:02.5]} 40...
Kh6 {[%clk 0:00:02.2]} 41. Qh8# {[%clk 0:00:03.4]} 1-0

[Event "Late-Titled-Tuesday-Blitz-October-10-2023"]
[Site "Chess.com"]
[Date "2023.10.10"]
[Round "4"]
[White "Grossboss19"]
[Black "2typicalchessplayer"]
[Result "0-1"]
[WhiteElo "2497"]
[BlackElo "2369"]
[TimeControl "180+1"]
[EndTime "14:37:09 PDT"]
[Termination "2typicalchessplayer won by checkmate"]

1. b3 {[%clk 0:03:00.9]} 1... e5 {[%clk 0:02:59.6]} 2. Bb2 {[%clk 0:02:52.4]}
2... Nc6 {[%clk 0:02:59.8]} 3. g3 {[%clk 0:02:51.9]} 3... d5 {[%clk 0:02:58.7]}
4. Bg2 {[%clk 0:02:52.8]} 4... Be6 {[%clk 0:02:57.6]} 5. d3 {[%clk 0:02:51.3]}
5... Qd7 {[%clk 0:02:57.1]} 6. c4 {[%clk 0:02:51]} 6... Nge7 {[%clk 0:02:54.3]}
7. Nf3 {[%clk 0:02:49.4]} 7... f6 {[%clk 0:02:54.3]} 8. Nc3 {[%clk 0:02:43.7]}
8... h5 {[%clk 0:02:49.3]} 9. h4 {[%clk 0:02:39.8]} 9... O-O-O {[%clk
0:02:48.2]} 10. Na4 {[%clk 0:02:30.4]} 10... Ng6 {[%clk 0:02:43.5]} 11. a3
{[%clk 0:02:25]} 11... dxc4 {[%clk 0:02:35.7]} 12. bxc4 {[%clk 0:02:21]} 12...
Be7 {[%clk 0:02:20.7]} 13. Nd2 {[%clk 0:02:10.3]} 13... Nd4 {[%clk 0:02:16.4]}
14. Bxd4 {[%clk 0:02:04.6]} 14... exd4 {[%clk 0:02:10.8]} 15. Rb1 {[%clk
0:02:03.4]} 15... b6 {[%clk 0:02:05.8]} 16. c5 {[%clk 0:01:50.7]} 16... Bd5
{[%clk 0:01:58.8]} 17. Bh3 {[%clk 0:01:42]} 17... f5 {[%clk 0:01:57.3]} 18. Nf3
{[%clk 0:01:29.2]} 18... Bxf3 {[%clk 0:01:53.7]} 19. exf3 {[%clk 0:01:28.8]}
19... b5 {[%clk 0:01:32.9]} 20. c6 {[%clk 0:01:00.2]} 20... Qe6+ {[%clk
0:01:29.1]} 21. Qe2 {[%clk 0:00:45]} 21... Qxe2+ {[%clk 0:01:28.5]} 22. Kxe2
{[%clk 0:00:45.9]} 22... Rd5 {[%clk 0:01:28.7]} 23. Nb2 {[%clk 0:00:28.7]} 23...
Bxa3 {[%clk 0:01:27.6]} 24. f4 {[%clk 0:00:21.9]} 24... Re8+ {[%clk 0:01:26.1]}
25. Kf3 {[%clk 0:00:21.8]} 25... Bc5 {[%clk 0:01:20.3]} 26. Rhe1 {[%clk
0:00:19.4]} 26... Kd8 {[%clk 0:01:17]} 27. Rxe8+ {[%clk 0:00:12]} 27... Kxe8
{[%clk 0:01:17.9]} 28. Nd1 {[%clk 0:00:12.3]} 28... Bb6 {[%clk 0:01:13.9]} 29.
Rb2 {[%clk 0:00:07]} 29... Ne7 {[%clk 0:01:13.9]} 30. Rc2 {[%clk 0:00:06.3]}
30... Rc5 {[%clk 0:01:08.9]} 31. Rxc5 {[%clk 0:00:05.5]} 31... Bxc5 {[%clk
0:01:09.8]} 32. Ke2 {[%clk 0:00:05.5]} 32... g6 {[%clk 0:01:08.1]} 33. Bg2
{[%clk 0:00:05.9]} 33... Kf7 {[%clk 0:01:07.9]} 34. Kd2 {[%clk 0:00:05.9]} 34...
Ke6 {[%clk 0:01:08.1]} 35. Kc2 {[%clk 0:00:04.8]} 35... Kd6 {[%clk 0:01:08.3]}
36. Kb3 {[%clk 0:00:05.1]} 36... a5 {[%clk 0:01:07.8]} 37. Nb2 {[%clk
0:00:04.8]} 37... a4+ {[%clk 0:01:07.6]} 38. Ka2 {[%clk 0:00:03.5]} 38... Nxc6
{[%clk 0:01:07.6]} 39. Bxc6 {[%clk 0:00:02.6]} 39... Kxc6 {[%clk 0:01:08.5]} 40.
f3 {[%clk 0:00:02.4]} 40... Bd6 {[%clk 0:01:07.8]} 41. Nd1 {[%clk 0:00:02.3]}
41... Kd5 {[%clk 0:01:07.9]} 42. Kb2 {[%clk 0:00:01.6]} 42... c5 {[%clk
0:01:08.3]} 43. Kc2 {[%clk 0:00:01.8]} 43... c4 {[%clk 0:01:08.5]} 44. Nf2
{[%clk 0:00:02.4]} 44... Kc5 {[%clk 0:01:06.7]} 45. Kb2 {[%clk 0:00:02.8]} 45...
Kb4 {[%clk 0:01:06.7]} 46. Kc2 {[%clk 0:00:03.3]} 46... a3 {[%clk 0:01:06.7]}
47. Nd1 {[%clk 0:00:03.3]} 47... Ka4 {[%clk 0:01:06]} 48. Kb1 {[%clk 0:00:03]}
48... Bb4 {[%clk 0:01:06.3]} 49. Ka2 {[%clk 0:00:03.2]} 49... Be1 {[%clk
0:01:05.7]} 50. g4 {[%clk 0:00:04.1]} 50... Bxh4 {[%clk 0:01:05.4]} 51. gxh5
{[%clk 0:00:03.6]} 51... gxh5 {[%clk 0:01:05.5]} 52. dxc4 {[%clk 0:00:03.4]}
52... bxc4 {[%clk 0:01:05.4]} 53. Kb1 {[%clk 0:00:04.3]} 53... Kb3 {[%clk
0:01:03.1]} 54. Ka1 {[%clk 0:00:04.3]} 54... Be1 {[%clk 0:01:02]} 55. Kb1 {[%clk
0:00:04.6]} 55... h4 {[%clk 0:01:02]} 56. Ka1 {[%clk 0:00:04.4]} 56... h3 {[%clk
0:01:02.3]} 57. Nb2 {[%clk 0:00:01.8]} 57... axb2+ {[%clk 0:00:59.9]} 58. Kb1
{[%clk 0:00:02.7]} 58... Kb4 {[%clk 0:01:00.7]} 59. Ka2 {[%clk 0:00:02.3]} 59...
d3 {[%clk 0:00:59.9]} 60. Kb1 {[%clk 0:00:02.6]} 60... d2 {[%clk 0:00:59]} 61.
Kc2 {[%clk 0:00:03]} 61... c3 {[%clk 0:00:58.7]} 62. Kd1 {[%clk 0:00:02.2]}
62... b1=Q+ {[%clk 0:00:58.8]} 63. Ke2 {[%clk 0:00:03.1]} 63... d1=Q+ {[%clk
0:00:58.8]} 64. Ke3 {[%clk 0:00:02.6]} 64... Qbd3# {[%clk 0:00:59.3]} 0-1

[Event "Late-Titled-Tuesday-Blitz-October-10-2023"]
[Site "Chess.com"]
[Date "2023.10.10"]
[Round "4"]
[White "Dedic8"]
[Black "GM_dmitrij"]
[Result "1-0"]
[WhiteElo "2870"]
[BlackElo "3013"]
[TimeControl "180+1"]
[EndTime "14:37:10 PDT"]
[Termination "Dedic8 won by checkmate"]

1. d4 {[%clk 0:03:00.9]} 1... Nf6 {[%clk 0:02:56.9]} 2. c4 {[%clk 0:03:01.5]}
2... e6 {[%clk 0:02:56.3]} 3. Nc3 {[%clk 0:03:02.1]} 3... Bb4 {[%clk 0:02:55.7]}
4. e3 {[%clk 0:03:02.2]} 4... O-O {[%clk 0:02:55.4]} 5. Bd3 {[%clk 0:03:02.9]}
5... d5 {[%clk 0:02:53.7]} 6. a3 {[%clk 0:03:02.9]} 6... dxc4 {[%clk 0:02:50.3]}
7. Bxc4 {[%clk 0:03:02.2]} 7... Bd6 {[%clk 0:02:50]} 8. Nf3 {[%clk 0:03:02.4]}
8... Nc6 {[%clk 0:02:50.3]} 9. e4 {[%clk 0:02:56.4]} 9... e5 {[%clk 0:02:50.3]}
10. d5 {[%clk 0:02:56.8]} 10... Ne7 {[%clk 0:02:49.9]} 11. h3 {[%clk 0:02:57.2]}
11... h6 {[%clk 0:02:45.9]} 12. Be3 {[%clk 0:02:48.1]} 12... a6 {[%clk 0:02:44]}
13. Qd2 {[%clk 0:02:45.2]} 13... Bd7 {[%clk 0:02:33.1]} 14. g4 {[%clk
0:02:09.5]} 14... b5 {[%clk 0:02:05.3]} 15. Bb3 {[%clk 0:02:04.3]} 15... a5
{[%clk 0:01:47.6]} 16. g5 {[%clk 0:01:58.5]} 16... hxg5 {[%clk 0:01:48.5]} 17.
Bxg5 {[%clk 0:01:59]} 17... Nh5 {[%clk 0:01:47]} 18. Rg1 {[%clk 0:01:44.1]}
18... Qe8 {[%clk 0:01:42.6]} 19. Nh4 {[%clk 0:01:24.7]} 19... Ng6 {[%clk
0:01:26.6]} 20. Bd1 {[%clk 0:01:14.8]} 20... Nhf4 {[%clk 0:01:13.5]} 21. Nf5
{[%clk 0:00:58.5]} 21... Bxf5 {[%clk 0:00:54.3]} 22. exf5 {[%clk 0:00:58.4]}
22... f6 {[%clk 0:00:54.7]} 23. fxg6 {[%clk 0:00:33.2]} 23... fxg5 {[%clk
0:00:54.5]} 24. Rxg5 {[%clk 0:00:33.3]} 24... e4 {[%clk 0:00:41.6]} 25. Bg4
{[%clk 0:00:27.3]} 25... Nd3+ {[%clk 0:00:32.8]} 26. Kd1 {[%clk 0:00:16.8]}
26... Bf4 {[%clk 0:00:23.5]} 27. Be6+ {[%clk 0:00:12.9]} 27... Qxe6 {[%clk
0:00:23.9]} 28. dxe6 {[%clk 0:00:13.1]} 28... Bxd2 {[%clk 0:00:24.5]} 29. Kxd2
{[%clk 0:00:14]} 29... Rae8 {[%clk 0:00:14.5]} 30. Nxe4 {[%clk 0:00:12.3]} 30...
Nxf2 {[%clk 0:00:14.2]} 31. Nc5 {[%clk 0:00:11.4]} 31... Nxh3 {[%clk 0:00:13]}
32. Rg4 {[%clk 0:00:10.8]} 32... Nf4 {[%clk 0:00:12]} 33. Rh1 {[%clk 0:00:10.2]}
33... Rf6 {[%clk 0:00:08.6]} 34. b4 {[%clk 0:00:08.2]} 34... axb4 {[%clk
0:00:08.1]} 35. axb4 {[%clk 0:00:09.1]} 35... Nxg6 {[%clk 0:00:07.9]} 36. Rhg1
{[%clk 0:00:08.7]} 36... Kh7 {[%clk 0:00:07.8]} 37. Rh1+ {[%clk 0:00:09.1]}
37... Kg8 {[%clk 0:00:08.1]} 38. Rhg1 {[%clk 0:00:09.6]} 38... Kh7 {[%clk
0:00:08.7]} 39. Ne4 {[%clk 0:00:08]} 39... Rexe6 {[%clk 0:00:06.3]} 40. Ng5+
{[%clk 0:00:06.4]} 40... Kg8 {[%clk 0:00:04.4]} 41. Nxe6 {[%clk 0:00:06.6]}
41... Ne5 {[%clk 0:00:04.2]} 42. Rxg7+ {[%clk 0:00:06.7]} 42... Kh8 {[%clk
0:00:04.6]} 43. Rh1+ {[%clk 0:00:07.3]} 43... Rh6 {[%clk 0:00:03.8]} 44. Rxh6#
{[%clk 0:00:07.9]} 1-0

[Event "Late-Titled-Tuesday-Blitz-October-10-2023"]
[Site "Chess.com"]
[Date "2023.10.10"]
[Round "4"]
[White "pedromartinez91"]
[Black "baki83"]
[Result "0-1"]
[WhiteElo "2547"]
[BlackElo "2818"]
[TimeControl "180+1"]
[EndTime "14:37:11 PDT"]
[Termination "baki83 won by resignation"]

1. d4 {[%clk 0:03:00.9]} 1... Nf6 {[%clk 0:02:59.4]} 2. c4 {[%clk 0:03:01]} 2...
g6 {[%clk 0:03:00]} 3. Nc3 {[%clk 0:03:01]} 3... d5 {[%clk 0:03:00.5]} 4. Bf4
{[%clk 0:02:54.6]} 4... Bg7 {[%clk 0:03:00]} 5. e3 {[%clk 0:02:54.8]} 5... O-O
{[%clk 0:03:00.1]} 6. Rc1 {[%clk 0:02:54.4]} 6... c5 {[%clk 0:03:00.2]} 7. dxc5
{[%clk 0:02:53.3]} 7... Be6 {[%clk 0:02:58]} 8. Nf3 {[%clk 0:02:32.2]} 8... Nc6
{[%clk 0:02:50.3]} 9. Be2 {[%clk 0:02:12.9]} 9... dxc4 {[%clk 0:02:44.7]} 10.
O-O {[%clk 0:02:12.4]} 10... Qa5 {[%clk 0:02:44.3]} 11. Ng5 {[%clk 0:02:06.5]}
11... Rad8 {[%clk 0:02:43.6]} 12. Qa4 {[%clk 0:02:03.6]} 12... Qxa4 {[%clk
0:02:03.9]} 13. Nxa4 {[%clk 0:02:02.1]} 13... Bd5 {[%clk 0:02:04]} 14. Bxc4
{[%clk 0:01:29.4]} 14... h6 {[%clk 0:01:53.2]} 15. Nf3 {[%clk 0:01:28.7]} 15...
Ne4 {[%clk 0:01:45.2]} 16. h3 {[%clk 0:01:08.3]} 16... Bxc4 {[%clk 0:01:10.2]}
17. Rxc4 {[%clk 0:01:09.2]} 17... f5 {[%clk 0:01:10.1]} 18. b4 {[%clk
0:00:40.8]} 18... a6 {[%clk 0:01:02.9]} 19. Nb6 {[%clk 0:00:35.7]} 19... Nc3
{[%clk 0:00:51.7]} 20. Bc7 {[%clk 0:00:25.6]} 20... Rd3 {[%clk 0:00:49.3]} 21.
Nh4 {[%clk 0:00:25.1]} 21... Kf7 {[%clk 0:00:34.3]} 22. g4 {[%clk 0:00:19.9]}
22... Be5 {[%clk 0:00:23.7]} 23. Nd7 {[%clk 0:00:10.1]} 23... Ne2+ {[%clk
0:00:19]} 24. Kg2 {[%clk 0:00:07.8]} 24... Rxd7 {[%clk 0:00:19.2]} 25. gxf5
{[%clk 0:00:02.9]} 25... Bxc7 {[%clk 0:00:17.7]} 26. fxg6+ {[%clk 0:00:03.8]}
26... Kg7 {[%clk 0:00:17.6]} 27. Rg4 {[%clk 0:00:04.4]} 27... Nc3 {[%clk
0:00:17.2]} 28. e4 {[%clk 0:00:01.9]} 28... Ne5 {[%clk 0:00:17.5]} 29. Nf5+
{[%clk 0:00:01.2]} 29... Rxf5 {[%clk 0:00:17.4]} 30. exf5 {[%clk 0:00:02.1]}
30... Nxg4 {[%clk 0:00:17.9]} 31. hxg4 {[%clk 0:00:03]} 31... Ne4 {[%clk
0:00:18.2]} 32. Kf3 {[%clk 0:00:03]} 32... Nf6 {[%clk 0:00:18.2]} 33. Kg2 {[%clk
0:00:03.9]} 33... Rd4 {[%clk 0:00:18.1]} 34. f3 {[%clk 0:00:04]} 34... Rd2+
{[%clk 0:00:17.4]} 35. Rf2 {[%clk 0:00:04.5]} 35... Rxf2+ {[%clk 0:00:17.4]} 36.
Kxf2 {[%clk 0:00:05.4]} 36... Be5 {[%clk 0:00:16.6]} 37. Ke3 {[%clk 0:00:05.5]}
37... Bc3 {[%clk 0:00:16.9]} 38. a3 {[%clk 0:00:05.6]} 38... Bb2 {[%clk
0:00:17.2]} 39. a4 {[%clk 0:00:06]} 39... Ba3 {[%clk 0:00:17.7]} 40. b5 {[%clk
0:00:06.5]} 40... axb5 {[%clk 0:00:17.9]} 41. axb5 {[%clk 0:00:07.4]} 41...
Bxc5+ {[%clk 0:00:18.1]} 42. Kd3 {[%clk 0:00:08]} 42... b6 {[%clk 0:00:18.7]}
43. Kc4 {[%clk 0:00:08.5]} 43... Ne8 {[%clk 0:00:18.6]} 44. Kd5 {[%clk
0:00:08.9]} 44... Kf6 {[%clk 0:00:18.2]} 45. f4 {[%clk 0:00:07.7]} 45... Ng7
{[%clk 0:00:18.3]} 46. Kc6 {[%clk 0:00:07.3]} 46... Nxf5 {[%clk 0:00:18.1]} 47.
gxf5 {[%clk 0:00:07.5]} 47... h5 {[%clk 0:00:18.5]} 48. Kd5 {[%clk 0:00:07.4]}
48... h4 {[%clk 0:00:19.1]} 49. Ke4 {[%clk 0:00:08]} 49... Bd4 {[%clk
0:00:17.7]} 50. Kf3 {[%clk 0:00:06.9]} 50... Kxf5 {[%clk 0:00:17.6]} 51. g7
{[%clk 0:00:05]} 51... Bxg7 {[%clk 0:00:18.1]} 0-1

[Event "Late-Titled-Tuesday-Blitz-October-10-2023"]
[Site "Chess.com"]
[Date "2023.10.10"]
[Round "4"]
[White "JonasGallasch"]
[Black "Blackwhite017"]
[Result "1-0"]
[WhiteElo "2418"]
[BlackElo "2031"]
[TimeControl "180+1"]
[EndTime "14:37:11 PDT"]
[Termination "JonasGallasch won on time"]

1. d4 {[%clk 0:03:00.9]} 1... d5 {[%clk 0:03:00]} 2. c4 {[%clk 0:02:59.8]} 2...
c6 {[%clk 0:03:00.1]} 3. Nf3 {[%clk 0:02:57]} 3... Nf6 {[%clk 0:02:58.5]} 4. e3
{[%clk 0:02:56.5]} 4... g6 {[%clk 0:02:46.8]} 5. Bd3 {[%clk 0:02:53.6]} 5... Bg7
{[%clk 0:02:46.7]} 6. O-O {[%clk 0:02:53.2]} 6... O-O {[%clk 0:02:47]} 7. b3
{[%clk 0:02:53.2]} 7... Bg4 {[%clk 0:02:45.7]} 8. Bb2 {[%clk 0:02:51.9]} 8...
Nbd7 {[%clk 0:02:44.8]} 9. Nbd2 {[%clk 0:02:50.5]} 9... e6 {[%clk 0:02:44.4]}
10. Qc2 {[%clk 0:02:46.1]} 10... Bxf3 {[%clk 0:02:43]} 11. Nxf3 {[%clk
0:02:45.5]} 11... Re8 {[%clk 0:02:43]} 12. Rfd1 {[%clk 0:02:44]} 12... Rc8
{[%clk 0:02:42.4]} 13. Rac1 {[%clk 0:02:38.6]} 13... a6 {[%clk 0:02:40.2]} 14.
Qb1 {[%clk 0:02:36.8]} 14... h5 {[%clk 0:02:29.4]} 15. Nd2 {[%clk 0:02:20.7]}
15... e5 {[%clk 0:02:17.1]} 16. dxe5 {[%clk 0:02:14.8]} 16... Nxe5 {[%clk
0:02:17.1]} 17. Be2 {[%clk 0:02:15.4]} 17... Qe7 {[%clk 0:02:00.3]} 18. Nf3
{[%clk 0:02:11.3]} 18... Nxf3+ {[%clk 0:01:35.2]} 19. Bxf3 {[%clk 0:02:10.7]}
19... dxc4 {[%clk 0:01:24]} 20. Rxc4 {[%clk 0:02:10.4]} 20... Rcd8 {[%clk
0:01:18.9]} 21. Rcc1 {[%clk 0:01:58.4]} 21... Rxd1+ {[%clk 0:00:19.2]} 22. Rxd1
{[%clk 0:01:56.5]} 22... Rd8 {[%clk 0:00:19.8]} 23. h3 {[%clk 0:01:07.8]} 23...
Rd6 {[%clk 0:00:17.1]} 24. Rxd6 {[%clk 0:00:34.9]} 24... Qxd6 {[%clk 0:00:16.9]}
25. Bc3 {[%clk 0:00:33]} 25... Nd5 {[%clk 0:00:16.9]} 26. Bxg7 {[%clk
0:00:32.8]} 26... Kxg7 {[%clk 0:00:17.8]} 27. Qd3 {[%clk 0:00:32.2]} 27... Qe6
{[%clk 0:00:12.3]} 28. Bxd5 {[%clk 0:00:31.4]} 28... Qxd5 {[%clk 0:00:10.9]} 29.
Qxd5 {[%clk 0:00:20.9]} 29... cxd5 {[%clk 0:00:11.8]} 30. Kf1 {[%clk 0:00:21.4]}
30... Kf6 {[%clk 0:00:12.3]} 31. Ke2 {[%clk 0:00:21.8]} 31... Ke5 {[%clk
0:00:13.2]} 32. Kd3 {[%clk 0:00:21.6]} 32... b5 {[%clk 0:00:09.8]} 33. b4 {[%clk
0:00:18.8]} 33... f6 {[%clk 0:00:09.1]} 34. h4 {[%clk 0:00:18.1]} 34... Ke6
{[%clk 0:00:05.6]} 35. Kd4 {[%clk 0:00:17.8]} 35... Kd6 {[%clk 0:00:05.8]} 36.
f4 {[%clk 0:00:14]} 36... Kc6 {[%clk 0:00:04.5]} 37. e4 {[%clk 0:00:11.4]} 37...
dxe4 {[%clk 0:00:04.5]} 38. Kxe4 {[%clk 0:00:12.3]} 38... Kd6 {[%clk 0:00:02.7]}
39. f5 {[%clk 0:00:12.9]} 39... g5 {[%clk 0:00:01.5]} 40. g3 {[%clk 0:00:09.3]}
1-0